[Event "*** Titled Tuesday Blitz"]
[Site "Chess.com"]
[Date "2019.07.02"]
[Round "2"]
[White "Superfelix"]
[Black "SubrotaBiswas"]
[Result "1-0"]
[WhiteElo "2346"]
[BlackElo "2496"]
[TimeControl "180+2"]
[EndTime "13:20:06 PDT"]
[Termination "Superfelix won by resignation"]

1. e4 {[%clk 0:02:58.9]} 1... e5 {[%clk 0:02:58.7]} 2. Nf3 {[%clk 0:02:58.3]}
2... Nc6 {[%clk 0:02:59.7]} 3. d4 {[%clk 0:02:58.6]} 3... exd4 {[%clk
0:03:01.6]} 4. Nxd4 {[%clk 0:03:00.2]} 4... Nf6 {[%clk 0:03:02.9]} 5. Nc3 {[%clk
0:03:00.9]} 5... Bb4 {[%clk 0:03:03.5]} 6. Nxc6 {[%clk 0:03:01.8]} 6... bxc6
{[%clk 0:03:05.3]} 7. Bd3 {[%clk 0:03:00.5]} 7... d5 {[%clk 0:03:06.3]} 8. exd5
{[%clk 0:03:01.2]} 8... O-O {[%clk 0:03:07]} 9. O-O {[%clk 0:03:02.1]} 9... cxd5
{[%clk 0:03:08.5]} 10. h3 {[%clk 0:03:02.1]} 10... c6 {[%clk 0:03:05.6]} 11. Qf3
{[%clk 0:03:02.3]} 11... Bd6 {[%clk 0:03:06.5]} 12. Bf4 {[%clk 0:03:02.7]} 12...
Be6 {[%clk 0:03:01.4]} 13. Rfe1 {[%clk 0:03:02.7]} 13... Re8 {[%clk 0:02:59.2]}
14. Bxd6 {[%clk 0:03:02]} 14... Qxd6 {[%clk 0:02:59.9]} 15. Qg3 {[%clk
0:03:01.9]} 15... Qxg3 {[%clk 0:02:59]} 16. fxg3 {[%clk 0:03:03.8]} 16... c5
{[%clk 0:02:57.6]} 17. b3 {[%clk 0:03:04.4]} 17... c4 {[%clk 0:02:47.2]} 18.
bxc4 {[%clk 0:03:03.6]} 18... dxc4 {[%clk 0:02:49]} 19. Bf1 {[%clk 0:02:59.5]}
19... Bf5 {[%clk 0:02:47.9]} 20. Bxc4 {[%clk 0:02:34.3]} 20... Rac8 {[%clk
0:02:34.9]} 21. Rxe8+ {[%clk 0:02:29.5]} 21... Nxe8 {[%clk 0:02:35.5]} 22. Nd5
{[%clk 0:02:29.1]} 22... Kf8 {[%clk 0:02:36.4]} 23. Bb3 {[%clk 0:02:29]} 23...
Nd6 {[%clk 0:02:33.1]} 24. Ne3 {[%clk 0:02:29]} 24... Be4 {[%clk 0:02:29.7]} 25.
Rd1 {[%clk 0:02:28.9]} 25... Ke7 {[%clk 0:02:29.6]} 26. Nd5+ {[%clk 0:02:25.4]}
26... Ke6 {[%clk 0:02:22.4]} 27. Nb6+ {[%clk 0:02:22.2]} 27... Ke5 {[%clk
0:02:21.8]} 28. Nxc8 {[%clk 0:02:22.2]} 28... Nxc8 {[%clk 0:02:23.6]} 29. Bxf7
{[%clk 0:02:22.1]} 29... Bxc2 {[%clk 0:02:24.4]} 30. Rc1 {[%clk 0:02:23.3]}
30... Nd6 {[%clk 0:02:23.4]} 31. Rxc2 {[%clk 0:02:23.6]} 31... Nxf7 {[%clk
0:02:24.6]} 32. Rc7 {[%clk 0:02:24.7]} 32... Nd6 {[%clk 0:02:24.6]} 33. Rxa7
{[%clk 0:02:25.3]} 33... Nf5 {[%clk 0:02:25.4]} 34. Ra5+ {[%clk 0:02:24.1]} 1-0

[Event "*** Titled Tuesday Blitz"]
[Site "Chess.com"]
[Date "2019.07.02"]
[Round "2"]
[White "KhazarBabazada"]
[Black "Agent-JL"]
[Result "1-0"]
[WhiteElo "2657"]
[BlackElo "2368"]
[TimeControl "180+2"]
[EndTime "13:20:20 PDT"]
[Termination "KhazarBabazada won by resignation"]

1. e4 {[%clk 0:03:01.9]} 1... c5 {[%clk 0:03:00.1]} 2. Nf3 {[%clk 0:03:01]} 2...
e6 {[%clk 0:03:01.5]} 3. d4 {[%clk 0:03:01.9]} 3... cxd4 {[%clk 0:03:03.4]} 4.
Nxd4 {[%clk 0:03:03.8]} 4... Nc6 {[%clk 0:03:05.3]} 5. Nc3 {[%clk 0:03:01.2]}
5... Qc7 {[%clk 0:03:03.8]} 6. Nxc6 {[%clk 0:03:00.4]} 6... bxc6 {[%clk
0:03:05.7]} 7. Bd3 {[%clk 0:03:00.5]} 7... d5 {[%clk 0:03:05.8]} 8. O-O {[%clk
0:03:01.9]} 8... Nf6 {[%clk 0:03:02.4]} 9. Qe2 {[%clk 0:03:02.9]} 9... Be7
{[%clk 0:03:01.5]} 10. e5 {[%clk 0:03:00.3]} 10... Nd7 {[%clk 0:03:00]} 11. Bf4
{[%clk 0:02:57.5]} 11... O-O {[%clk 0:02:58.3]} 12. Bg3 {[%clk 0:02:54.4]} 12...
Rb8 {[%clk 0:02:55.2]} 13. Rab1 {[%clk 0:02:49.2]} 13... Nc5 {[%clk 0:02:48.3]}
14. f4 {[%clk 0:02:47.8]} 14... a5 {[%clk 0:02:46.6]} 15. f5 {[%clk 0:02:47.3]}
15... Nxd3 {[%clk 0:02:46]} 16. f6 {[%clk 0:02:00.6]} 16... Bc5+ {[%clk
0:02:46.1]} 17. Kh1 {[%clk 0:02:01.7]} 17... Nxb2 {[%clk 0:02:39.4]} 18. Rxb2
{[%clk 0:01:50.5]} 18... Rxb2 {[%clk 0:02:33.5]} 19. Na4 {[%clk 0:01:51.5]}
19... Ba3 {[%clk 0:02:33.7]} 20. Nxb2 {[%clk 0:01:42.5]} 20... Bxb2 {[%clk
0:02:35.6]} 21. c4 {[%clk 0:01:43.7]} 21... Ba3 {[%clk 0:02:28.3]} 22. Qe3
{[%clk 0:01:38.5]} 22... Be7 {[%clk 0:02:00.3]} 23. Qg5 {[%clk 0:01:35.7]} 23...
g6 {[%clk 0:01:49.1]} 24. Qh6 {[%clk 0:01:34.2]} 1-0

[Event "*** Titled Tuesday Blitz"]
[Site "Chess.com"]
[Date "2019.07.02"]
[Round "2"]
[White "Sanyura"]
[Black "Walter_White_Poland"]
[Result "1-0"]
[WhiteElo "2445"]
[BlackElo "2295"]
[TimeControl "180+2"]
[EndTime "13:20:37 PDT"]
[Termination "Sanyura won by resignation"]

1. Nf3 {[%clk 0:03:01.9]} 1... c5 {[%clk 0:03:00.1]} 2. e4 {[%clk 0:03:02.8]}
2... Nc6 {[%clk 0:03:00.2]} 3. d4 {[%clk 0:03:04]} 3... cxd4 {[%clk 0:03:00.7]}
4. Nxd4 {[%clk 0:03:05.9]} 4... Nf6 {[%clk 0:03:02]} 5. Nc3 {[%clk 0:03:06.2]}
5... e5 {[%clk 0:03:03.1]} 6. Ndb5 {[%clk 0:03:07.4]} 6... d6 {[%clk 0:03:04.1]}
7. Nd5 {[%clk 0:03:08.5]} 7... Nxd5 {[%clk 0:03:03.9]} 8. exd5 {[%clk
0:03:10.4]} 8... Nb8 {[%clk 0:03:04.7]} 9. a4 {[%clk 0:03:10.7]} 9... Be7 {[%clk
0:03:05.1]} 10. Be2 {[%clk 0:03:11.3]} 10... O-O {[%clk 0:03:05.8]} 11. O-O
{[%clk 0:03:12.9]} 11... f5 {[%clk 0:03:02.2]} 12. a5 {[%clk 0:03:10.1]} 12...
Nd7 {[%clk 0:02:50]} 13. f4 {[%clk 0:03:09.5]} 13... exf4 {[%clk 0:02:36.9]} 14.
Bxf4 {[%clk 0:03:08]} 14... Nc5 {[%clk 0:02:37.7]} 15. Nd4 {[%clk 0:03:07.3]}
15... Bf6 {[%clk 0:02:34.7]} 16. c3 {[%clk 0:03:05.8]} 16... Qe8 {[%clk
0:02:03.9]} 17. Bf3 {[%clk 0:03:00.8]} 17... g5 {[%clk 0:02:03.9]} 18. Bxd6
{[%clk 0:02:59]} 18... Qe3+ {[%clk 0:01:51.9]} 19. Kh1 {[%clk 0:02:58.9]} 19...
Nd3 {[%clk 0:01:48.4]} 20. Bxf8 {[%clk 0:02:56.9]} 20... Kxf8 {[%clk 0:01:48.5]}
21. Qe2 {[%clk 0:02:55.8]} 21... Qxe2 {[%clk 0:01:43.2]} 22. Bxe2 {[%clk
0:02:57.7]} 22... Nxb2 {[%clk 0:01:40.6]} 23. Nxf5 {[%clk 0:02:58.5]} 23... Bxc3
{[%clk 0:01:37.6]} 24. Rac1 {[%clk 0:02:58.4]} 24... Be5 {[%clk 0:01:34.3]} 25.
d6 {[%clk 0:02:59]} 25... Bd7 {[%clk 0:01:28]} 26. Rc7 {[%clk 0:02:58.6]} 26...
Rd8 {[%clk 0:01:20.9]} 27. Ne3+ {[%clk 0:02:55.9]} 27... Kg8 {[%clk 0:01:18.4]}
28. Nc4 {[%clk 0:02:56.4]} 28... Nxc4 {[%clk 0:01:12.6]} 29. Bxc4+ {[%clk
0:02:58.3]} 29... Kh8 {[%clk 0:01:11.4]} 30. Rf7 {[%clk 0:02:59.3]} 1-0

[Event "*** Titled Tuesday Blitz"]
[Site "Chess.com"]
[Date "2019.07.02"]
[Round "2"]
[White "julinha97"]
[Black "XiaoKangZhong"]
[Result "1-0"]
[WhiteElo "2217"]
[BlackElo "2240"]
[TimeControl "180+2"]
[EndTime "13:20:42 PDT"]
[Termination "julinha97 won by resignation"]

1. e4 {[%clk 0:03:01.9]} 1... c5 {[%clk 0:03:00.3]} 2. Nf3 {[%clk 0:03:02.9]}
2... e6 {[%clk 0:03:01.1]} 3. d4 {[%clk 0:03:03.8]} 3... cxd4 {[%clk 0:03:03]}
4. Nxd4 {[%clk 0:03:05.5]} 4... Nc6 {[%clk 0:03:02.1]} 5. Nc3 {[%clk 0:03:05.6]}
5... Qc7 {[%clk 0:03:03]} 6. Be3 {[%clk 0:03:05.8]} 6... a6 {[%clk 0:03:03.8]}
7. Qf3 {[%clk 0:03:07]} 7... Ne5 {[%clk 0:03:02.1]} 8. Qg3 {[%clk 0:03:07.5]}
8... h5 {[%clk 0:03:01.2]} 9. f3 {[%clk 0:03:00.5]} 9... h4 {[%clk 0:02:57]} 10.
Qf2 {[%clk 0:03:01.3]} 10... Nf6 {[%clk 0:02:57]} 11. O-O-O {[%clk 0:02:59]}
11... Nc4 {[%clk 0:02:35.4]} 12. Bxc4 {[%clk 0:02:59]} 12... Qxc4 {[%clk
0:02:37.3]} 13. e5 {[%clk 0:02:52.7]} 13... Nd5 {[%clk 0:02:32]} 14. Nxd5 {[%clk
0:02:53.1]} 14... Qxd5 {[%clk 0:02:31.8]} 15. Kb1 {[%clk 0:02:47.3]} 15... Qxe5
{[%clk 0:02:29.5]} 16. f4 {[%clk 0:02:45.3]} 16... Qa5 {[%clk 0:02:22.5]} 17. f5
{[%clk 0:02:46.3]} 17... Be7 {[%clk 0:02:20.4]} 18. Rhf1 {[%clk 0:02:41.2]}
18... O-O {[%clk 0:02:20.8]} 19. g4 {[%clk 0:02:32.5]} 19... hxg3 {[%clk
0:01:24.2]} 20. hxg3 {[%clk 0:02:32.1]} 20... b5 {[%clk 0:01:16.5]} 21. Rh1
{[%clk 0:02:20.5]} 21... f6 {[%clk 0:00:57.8]} 22. Qh2 {[%clk 0:02:14.8]} 22...
Bc5 {[%clk 0:00:49]} 23. fxe6 {[%clk 0:02:08.6]} 23... dxe6 {[%clk 0:00:48.9]}
24. Qh7+ {[%clk 0:02:09.6]} 24... Kf7 {[%clk 0:00:49.6]} 25. Qh5+ {[%clk
0:02:10.4]} 1-0

[Event "*** Titled Tuesday Blitz"]
[Site "Chess.com"]
[Date "2019.07.02"]
[Round "2"]
[White "petrpalachev"]
[Black "vanea_03"]
[Result "1-0"]
[WhiteElo "2779"]
[BlackElo "2674"]
[TimeControl "180+2"]
[EndTime "13:20:49 PDT"]
[Termination "petrpalachev won by resignation"]

1. d4 {[%clk 0:03:01.9]} 1... Nf6 {[%clk 0:03:00.8]} 2. c4 {[%clk 0:03:03.2]}
2... e6 {[%clk 0:03:01.8]} 3. Nc3 {[%clk 0:03:04.2]} 3... d5 {[%clk 0:03:00.7]}
4. Nf3 {[%clk 0:03:04.4]} 4... dxc4 {[%clk 0:03:00.6]} 5. e4 {[%clk 0:03:04.6]}
5... b5 {[%clk 0:03:01.8]} 6. e5 {[%clk 0:02:59.7]} 6... Nd5 {[%clk 0:03:03]} 7.
Nxb5 {[%clk 0:03:00.5]} 7... Nb6 {[%clk 0:03:04.5]} 8. Be2 {[%clk 0:02:58.1]}
8... Be7 {[%clk 0:03:05.5]} 9. O-O {[%clk 0:02:59.1]} 9... O-O {[%clk
0:03:05.3]} 10. Qd2 {[%clk 0:02:58.8]} 10... Nc6 {[%clk 0:03:04.3]} 11. Rd1
{[%clk 0:02:57.8]} 11... Rb8 {[%clk 0:03:02]} 12. Nc3 {[%clk 0:02:55.3]} 12...
Nb4 {[%clk 0:02:42.7]} 13. Qf4 {[%clk 0:02:44]} 13... Bb7 {[%clk 0:02:20.9]} 14.
Qg3 {[%clk 0:02:43.5]} 14... Kh8 {[%clk 0:02:17.4]} 15. Qh3 {[%clk 0:02:44.2]}
15... N6d5 {[%clk 0:02:11.3]} 16. Bxc4 {[%clk 0:02:41.8]} 16... Nc2 {[%clk
0:01:54.6]} 17. Rb1 {[%clk 0:02:41.2]} 17... Na3 {[%clk 0:01:46.7]} 18. Bd3
{[%clk 0:02:38.3]} 18... g6 {[%clk 0:01:38.9]} 19. Nxd5 {[%clk 0:02:39.5]} 19...
Nxb1 {[%clk 0:01:13.7]} 20. Nxe7 {[%clk 0:02:39.8]} 20... Qxe7 {[%clk
0:01:15.6]} 21. Bg5 {[%clk 0:02:35.7]} 21... f6 {[%clk 0:01:15.7]} 22. Bxf6+
{[%clk 0:02:36.1]} 22... Rxf6 {[%clk 0:01:17]} 23. exf6 {[%clk 0:02:38]} 23...
Qxf6 {[%clk 0:01:18.9]} 24. Bxb1 {[%clk 0:02:38.5]} 24... Bd5 {[%clk 0:01:20.2]}
25. b3 {[%clk 0:02:38.8]} 25... Rf8 {[%clk 0:01:19.2]} 26. Qg3 {[%clk 0:02:39]}
26... Kg8 {[%clk 0:01:19.6]} 27. Ne5 {[%clk 0:02:38.2]} 27... Qe7 {[%clk
0:01:15.4]} 28. h4 {[%clk 0:02:33.9]} 28... Kg7 {[%clk 0:01:11.6]} 29. Rc1
{[%clk 0:02:30.8]} 29... Rc8 {[%clk 0:01:02.6]} 30. Ng4 {[%clk 0:02:26.7]} 30...
h5 {[%clk 0:00:55.2]} 31. Ne5 {[%clk 0:02:26.9]} 1-0

[Event "*** Titled Tuesday Blitz"]
[Site "Chess.com"]
[Date "2019.07.02"]
[Round "2"]
[White "IMAghasiyevKamal"]
[Black "dopolian"]
[Result "1-0"]
[WhiteElo "2533"]
[BlackElo "2346"]
[TimeControl "180+2"]
[EndTime "13:21:13 PDT"]
[Termination "IMAghasiyevKamal won by resignation"]

1. e4 {[%clk 0:03:01.9]} 1... e5 {[%clk 0:03:00.8]} 2. Nf3 {[%clk 0:03:02.3]}
2... Nc6 {[%clk 0:03:02.2]} 3. Bb5 {[%clk 0:03:02.4]} 3... a6 {[%clk 0:03:01.9]}
4. Ba4 {[%clk 0:03:03.2]} 4... Nf6 {[%clk 0:03:02.5]} 5. O-O {[%clk 0:03:03.9]}
5... Nxe4 {[%clk 0:03:04]} 6. d4 {[%clk 0:03:03.5]} 6... b5 {[%clk 0:03:05.1]}
7. Bb3 {[%clk 0:03:04.5]} 7... d5 {[%clk 0:03:06.7]} 8. dxe5 {[%clk 0:03:05.5]}
8... Be6 {[%clk 0:03:08.3]} 9. Qe2 {[%clk 0:03:02.1]} 9... Na5 {[%clk
0:03:07.2]} 10. Rd1 {[%clk 0:02:59.3]} 10... c6 {[%clk 0:02:56.9]} 11. Nd4
{[%clk 0:02:47.8]} 11... Be7 {[%clk 0:02:39.4]} 12. Nxe6 {[%clk 0:02:42.8]}
12... fxe6 {[%clk 0:02:39.6]} 13. Qg4 {[%clk 0:02:43.8]} 13... Qd7 {[%clk
0:02:27.1]} 14. Nd2 {[%clk 0:02:40.2]} 14... Nxd2 {[%clk 0:02:22.7]} 15. Bxd2
{[%clk 0:02:41.4]} 15... Nxb3 {[%clk 0:02:20.2]} 16. Qxg7 {[%clk 0:02:37.7]}
16... O-O-O {[%clk 0:01:31.2]} 17. axb3 {[%clk 0:02:37.5]} 17... Kb7 {[%clk
0:01:23.7]} 18. Be3 {[%clk 0:02:23.2]} 18... Rdg8 {[%clk 0:01:16.8]} 19. Qf7
{[%clk 0:02:22.3]} 19... Rf8 {[%clk 0:01:15.4]} 20. Qh5 {[%clk 0:02:22.7]} 20...
Rf5 {[%clk 0:01:15.1]} 21. Qg4 {[%clk 0:02:19.1]} 21... h5 {[%clk 0:01:09.9]}
22. Qg6 {[%clk 0:02:14.6]} 22... Bd8 {[%clk 0:00:55.3]} 23. b4 {[%clk
0:02:03.5]} 23... Rh7 {[%clk 0:00:46.2]} 24. Rxa6 {[%clk 0:02:00.6]} 24... Kxa6
{[%clk 0:00:38.3]} 25. Ra1+ {[%clk 0:02:00.9]} 25... Kb7 {[%clk 0:00:38.8]} 26.
Ra7+ {[%clk 0:02:00.8]} 26... Kc8 {[%clk 0:00:38.2]} 27. Rxd7 {[%clk 0:02:00.9]}
27... Kxd7 {[%clk 0:00:40.1]} 28. Qxh7+ {[%clk 0:02:01.5]} 1-0

[Event "*** Titled Tuesday Blitz"]
[Site "Chess.com"]
[Date "2019.07.02"]
[Round "2"]
[White "diskeleven"]
[Black "Mykola-Bortnyk"]
[Result "0-1"]
[WhiteElo "2376"]
[BlackElo "2916"]
[TimeControl "180+2"]
[EndTime "13:21:16 PDT"]
[Termination "Mykola-Bortnyk won by resignation"]

1. d4 {[%clk 0:02:53.3]} 1... Nf6 {[%clk 0:03:00.2]} 2. c4 {[%clk 0:02:54.4]}
2... g6 {[%clk 0:03:01.2]} 3. Nc3 {[%clk 0:02:55.2]} 3... Bg7 {[%clk 0:03:02.4]}
4. e4 {[%clk 0:02:56.5]} 4... d6 {[%clk 0:03:03.3]} 5. f3 {[%clk 0:02:57.7]}
5... c5 {[%clk 0:03:02]} 6. d5 {[%clk 0:02:58.6]} 6... e6 {[%clk 0:02:58.7]} 7.
Nge2 {[%clk 0:02:59.2]} 7... O-O {[%clk 0:02:58.8]} 8. Ng3 {[%clk 0:03:00]} 8...
exd5 {[%clk 0:02:59.7]} 9. cxd5 {[%clk 0:03:00.7]} 9... a6 {[%clk 0:02:57.4]}
10. a4 {[%clk 0:03:01.2]} 10... Nbd7 {[%clk 0:02:54.7]} 11. Be2 {[%clk
0:03:02.2]} 11... h5 {[%clk 0:02:48.9]} 12. Bg5 {[%clk 0:03:02]} 12... Qa5
{[%clk 0:02:48.1]} 13. O-O {[%clk 0:03:00.4]} 13... Nh7 {[%clk 0:02:47.3]} 14.
Be3 {[%clk 0:02:55.8]} 14... h4 {[%clk 0:02:43.7]} 15. Nh1 {[%clk 0:02:56.4]}
15... f5 {[%clk 0:02:45]} 16. Qd2 {[%clk 0:02:57.1]} 16... Ndf6 {[%clk
0:02:18.7]} 17. Nf2 {[%clk 0:02:43.8]} 17... Nh5 {[%clk 0:02:15.4]} 18. Bh6
{[%clk 0:02:36.2]} 18... Qc7 {[%clk 0:02:16.3]} 19. Bxg7 {[%clk 0:02:36.4]}
19... Qxg7 {[%clk 0:02:16.9]} 20. Nd3 {[%clk 0:02:27.1]} 20... Qd4+ {[%clk
0:02:13.5]} 21. Kh1 {[%clk 0:02:03.5]} 21... c4 {[%clk 0:02:14.6]} 22. Qh6
{[%clk 0:02:00.7]} 22... cxd3 {[%clk 0:02:15.6]} 23. Qxg6+ {[%clk 0:02:01.9]}
23... Ng7 {[%clk 0:02:11.2]} 24. Rfd1 {[%clk 0:00:48.7]} 24... Rf6 {[%clk
0:02:10.2]} 25. Rxd3 {[%clk 0:00:48.7]} 25... Qe5 {[%clk 0:02:05]} 26. f4 {[%clk
0:00:49.2]} 26... Qe7 {[%clk 0:02:05.2]} 27. exf5 {[%clk 0:00:43.9]} 27... Bxf5
{[%clk 0:02:02.8]} 0-1

[Event "*** Titled Tuesday Blitz"]
[Site "Chess.com"]
[Date "2019.07.02"]
[Round "2"]
[White "lionheart95"]
[Black "FelixBlohberger"]
[Result "1-0"]
[WhiteElo "2423"]
[BlackElo "2527"]
[TimeControl "180+2"]
[EndTime "13:21:19 PDT"]
[Termination "lionheart95 won by resignation"]

1. d4 {[%clk 0:03:01.9]} 1... Nf6 {[%clk 0:02:56.3]} 2. c4 {[%clk 0:03:01]} 2...
g6 {[%clk 0:02:57.1]} 3. Nf3 {[%clk 0:02:59.9]} 3... Bg7 {[%clk 0:02:57.8]} 4.
g3 {[%clk 0:03:01]} 4... O-O {[%clk 0:02:57.5]} 5. Bg2 {[%clk 0:03:02.1]} 5...
c6 {[%clk 0:02:58.5]} 6. O-O {[%clk 0:03:02.4]} 6... d5 {[%clk 0:02:59.7]} 7.
cxd5 {[%clk 0:03:00.4]} 7... cxd5 {[%clk 0:03:00.6]} 8. Ne5 {[%clk 0:02:56.8]}
8... Nc6 {[%clk 0:02:51.8]} 9. Nxc6 {[%clk 0:02:56.2]} 9... bxc6 {[%clk
0:02:52.5]} 10. Nc3 {[%clk 0:02:57.7]} 10... Nd7 {[%clk 0:02:27.8]} 11. Be3
{[%clk 0:02:43.1]} 11... Rb8 {[%clk 0:01:47.7]} 12. Na4 {[%clk 0:02:24.9]} 12...
Qa5 {[%clk 0:01:09.7]} 13. Rc1 {[%clk 0:02:24.3]} 13... Qa6 {[%clk 0:01:09.1]}
14. b3 {[%clk 0:02:24.3]} 14... Rd8 {[%clk 0:01:02.3]} 15. Bf4 {[%clk 0:02:22]}
15... Rb4 {[%clk 0:01:01.8]} 16. e3 {[%clk 0:02:12.9]} 16... e5 {[%clk 0:00:44]}
17. dxe5 {[%clk 0:02:11.5]} 17... Nxe5 {[%clk 0:00:45.9]} 18. Qd2 {[%clk
0:02:08.4]} 18... Nd3 {[%clk 0:00:35.2]} 19. Nc5 {[%clk 0:02:07.9]} 19... Nxc5
{[%clk 0:00:28.5]} 20. Qxb4 {[%clk 0:02:09]} 20... Nd3 {[%clk 0:00:22]} 21. Qe7
{[%clk 0:02:08.4]} 21... Rd7 {[%clk 0:00:15.1]} 22. Qe8+ {[%clk 0:02:07.7]}
22... Bf8 {[%clk 0:00:15.7]} 23. Bh6 {[%clk 0:02:09.1]} 23... Qa3 {[%clk
0:00:14.4]} 24. Qxc8 {[%clk 0:02:10.1]} 24... Nxc1 {[%clk 0:00:14.6]} 1-0

[Event "*** Titled Tuesday Blitz"]
[Site "Chess.com"]
[Date "2019.07.02"]
[Round "2"]
[White "timator"]
[Black "vovachesss"]
[Result "1/2-1/2"]
[WhiteElo "2384"]
[BlackElo "2665"]
[TimeControl "180+2"]
[EndTime "13:21:41 PDT"]
[Termination "Game drawn by agreement"]

1. Nf3 {[%clk 0:03:01.9]} 1... d5 {[%clk 0:03:00.8]} 2. g3 {[%clk 0:03:02.5]}
2... Nc6 {[%clk 0:03:01.8]} 3. Bg2 {[%clk 0:03:04.4]} 3... e5 {[%clk 0:03:03.1]}
4. O-O {[%clk 0:03:00.5]} 4... h5 {[%clk 0:02:59.9]} 5. d4 {[%clk 0:03:01.4]}
5... e4 {[%clk 0:03:00.3]} 6. Ne5 {[%clk 0:03:03]} 6... Nxe5 {[%clk 0:02:59.4]}
7. dxe5 {[%clk 0:03:04]} 7... h4 {[%clk 0:03:00.6]} 8. c4 {[%clk 0:03:04]} 8...
hxg3 {[%clk 0:03:00.8]} 9. hxg3 {[%clk 0:03:01.5]} 9... c6 {[%clk 0:02:58.9]}
10. Nc3 {[%clk 0:02:58.5]} 10... Be6 {[%clk 0:02:55.6]} 11. cxd5 {[%clk
0:02:52.7]} 11... cxd5 {[%clk 0:02:57.5]} 12. Qa4+ {[%clk 0:02:53.4]} 12... Bd7
{[%clk 0:02:48.5]} 13. Qb3 {[%clk 0:02:49.7]} 13... Bc6 {[%clk 0:02:49.6]} 14.
Rd1 {[%clk 0:02:50.4]} 14... Qa5 {[%clk 0:02:02.5]} 15. Nxd5 {[%clk 0:02:11.8]}
15... O-O-O {[%clk 0:01:52.7]} 16. Bxe4 {[%clk 0:02:08.9]} 16... Ne7 {[%clk
0:01:41.5]} 17. Nxe7+ {[%clk 0:02:06.7]} 17... Bxe7 {[%clk 0:01:42]} 18. Bxc6
{[%clk 0:02:06.5]} 18... Rxd1+ {[%clk 0:01:39.3]} 19. Qxd1 {[%clk 0:02:08.4]}
19... bxc6 {[%clk 0:01:40.7]} 20. Qc2 {[%clk 0:02:03.6]} 20... Qd5 {[%clk
0:01:33.1]} 21. e4 {[%clk 0:02:00.3]} 21... Qe6 {[%clk 0:01:27.8]} 22. Be3
{[%clk 0:01:39.7]} 22... Qh3 {[%clk 0:00:16.8]} 1/2-1/2

[Event "*** Titled Tuesday Blitz"]
[Site "Chess.com"]
[Date "2019.07.02"]
[Round "2"]
[White "csati17"]
[Black "ruzomberok"]
[Result "0-1"]
[WhiteElo "2537"]
[BlackElo "2412"]
[TimeControl "180+2"]
[EndTime "13:21:55 PDT"]
[Termination "ruzomberok won by resignation"]

1. c4 {[%clk 0:03:01.9]} 1... c6 {[%clk 0:02:57.4]} 2. d4 {[%clk 0:03:01.1]}
2... d5 {[%clk 0:02:58.1]} 3. cxd5 {[%clk 0:03:03]} 3... cxd5 {[%clk 0:02:59.4]}
4. Nc3 {[%clk 0:03:04.9]} 4... Nf6 {[%clk 0:02:59.8]} 5. Bf4 {[%clk 0:03:04.6]}
5... Nc6 {[%clk 0:03:00.3]} 6. e3 {[%clk 0:03:05.4]} 6... a6 {[%clk 0:02:55.7]}
7. Bd3 {[%clk 0:03:03.2]} 7... Bg4 {[%clk 0:02:56.2]} 8. f3 {[%clk 0:03:03.3]}
8... Bh5 {[%clk 0:02:56]} 9. Nge2 {[%clk 0:03:03.9]} 9... e6 {[%clk 0:02:56.1]}
10. O-O {[%clk 0:03:02.5]} 10... Bg6 {[%clk 0:02:56.8]} 11. a3 {[%clk
0:03:02.3]} 11... Bxd3 {[%clk 0:02:56.2]} 12. Qxd3 {[%clk 0:03:04.2]} 12... Bd6
{[%clk 0:02:57.1]} 13. b4 {[%clk 0:03:04.4]} 13... O-O {[%clk 0:02:55.7]} 14.
Rac1 {[%clk 0:03:02.3]} 14... Rc8 {[%clk 0:02:55.6]} 15. Na4 {[%clk 0:02:59.2]}
15... Bxf4 {[%clk 0:02:52]} 16. Nxf4 {[%clk 0:03:00.1]} 16... e5 {[%clk
0:02:51.7]} 17. dxe5 {[%clk 0:02:40.4]} 17... Nxe5 {[%clk 0:02:53.6]} 18. Qd4
{[%clk 0:02:42.3]} 18... Nc4 {[%clk 0:02:49.7]} 19. Nc5 {[%clk 0:02:32.8]} 19...
Nxa3 {[%clk 0:02:39.7]} 20. Nxb7 {[%clk 0:02:30.3]} 20... Qe7 {[%clk 0:02:39.7]}
21. Nc5 {[%clk 0:02:28.3]} 21... Nb5 {[%clk 0:02:39.7]} 22. Qd3 {[%clk
0:02:26.2]} 22... Rfe8 {[%clk 0:02:36.6]} 23. Rfe1 {[%clk 0:02:27.2]} 23... Qd6
{[%clk 0:02:26.6]} 24. Rcd1 {[%clk 0:02:19.3]} 24... Nc7 {[%clk 0:02:21]} 25.
Ra1 {[%clk 0:02:10.5]} 25... Rb8 {[%clk 0:02:15.7]} 26. Qd2 {[%clk 0:01:46]}
26... Rb6 {[%clk 0:02:09.5]} 27. Rad1 {[%clk 0:01:37.5]} 27... Reb8 {[%clk
0:02:03.5]} 28. e4 {[%clk 0:01:38.7]} 28... Rxb4 {[%clk 0:02:02.6]} 29. e5
{[%clk 0:01:39.2]} 29... Qxc5+ {[%clk 0:02:02.4]} 30. Kh1 {[%clk 0:01:40.2]}
30... Nd7 {[%clk 0:01:59.5]} 31. Rc1 {[%clk 0:01:38.4]} 31... Rc4 {[%clk
0:01:57.7]} 32. Rxc4 {[%clk 0:01:39.1]} 32... Qxc4 {[%clk 0:01:54.3]} 33. Rc1
{[%clk 0:01:40.3]} 33... Qb4 {[%clk 0:01:50.3]} 34. Qe3 {[%clk 0:01:20.2]} 34...
Qb3 {[%clk 0:01:33.9]} 35. Qa7 {[%clk 0:01:15.8]} 35... Qb7 {[%clk 0:01:24.9]}
36. Rxc7 {[%clk 0:01:13.5]} 36... Qxa7 {[%clk 0:01:23.1]} 0-1

[Event "*** Titled Tuesday Blitz"]
[Site "Chess.com"]
[Date "2019.07.02"]
[Round "2"]
[White "Khanya_Mazibuko"]
[Black "GremioPrudente"]
[Result "0-1"]
[WhiteElo "2236"]
[BlackElo "2223"]
[TimeControl "180+2"]
[EndTime "13:22:03 PDT"]
[Termination "GremioPrudente won by resignation"]

1. e4 {[%clk 0:03:01.9]} 1... e6 {[%clk 0:03:00.7]} 2. d4 {[%clk 0:03:02.4]}
2... d5 {[%clk 0:03:02.2]} 3. Nd2 {[%clk 0:03:03]} 3... Nf6 {[%clk 0:03:03.2]}
4. e5 {[%clk 0:03:03.9]} 4... Nfd7 {[%clk 0:03:04.4]} 5. Bd3 {[%clk 0:03:05.4]}
5... c5 {[%clk 0:03:05.9]} 6. c3 {[%clk 0:03:07.3]} 6... Nc6 {[%clk 0:03:07.4]}
7. Ngf3 {[%clk 0:03:06.9]} 7... Qb6 {[%clk 0:03:07.2]} 8. O-O {[%clk 0:03:07.1]}
8... cxd4 {[%clk 0:03:06.9]} 9. cxd4 {[%clk 0:03:09]} 9... Nxd4 {[%clk
0:03:08.1]} 10. Nxd4 {[%clk 0:03:10.9]} 10... Qxd4 {[%clk 0:03:08.7]} 11. Nf3
{[%clk 0:03:12.8]} 11... Qb6 {[%clk 0:02:59.7]} 12. Qa4 {[%clk 0:03:11.4]} 12...
Qb4 {[%clk 0:02:40.2]} 13. Qc2 {[%clk 0:03:08.6]} 13... Qc5 {[%clk 0:02:41.5]}
14. Qe2 {[%clk 0:03:07.8]} 14... Be7 {[%clk 0:02:23]} 15. Be3 {[%clk 0:03:06.6]}
15... Qb4 {[%clk 0:02:15.3]} 16. Qc2 {[%clk 0:02:52.9]} 16... Nc5 {[%clk
0:02:08.2]} 17. a3 {[%clk 0:02:31.7]} 17... Qa4 {[%clk 0:02:07.6]} 18. Rac1
{[%clk 0:01:39.2]} 18... Qxc2 {[%clk 0:01:50.5]} 19. Bxc2 {[%clk 0:01:41.1]}
19... b6 {[%clk 0:01:52.1]} 20. b4 {[%clk 0:01:39.9]} 20... Nd7 {[%clk
0:01:45.5]} 21. Ba4 {[%clk 0:01:38.8]} 21... Kd8 {[%clk 0:01:33.5]} 22. Rc2
{[%clk 0:01:32]} 22... Ba6 {[%clk 0:01:28]} 23. Rfc1 {[%clk 0:01:29.6]} 23...
Rc8 {[%clk 0:01:29.1]} 24. Bc6 {[%clk 0:01:30.2]} 24... Bd3 {[%clk 0:01:20]} 25.
Rc3 {[%clk 0:01:27]} 25... Be4 {[%clk 0:01:19.8]} 26. Nd4 {[%clk 0:01:25.9]}
26... Nxe5 {[%clk 0:01:11.5]} 27. Rb3 {[%clk 0:01:25.5]} 27... Nc4 {[%clk
0:01:03]} 28. Rxc4 {[%clk 0:01:21.2]} 28... dxc4 {[%clk 0:01:01.6]} 0-1